Cogmind - Beta 13 *** ADVENTURER MODE // 2024.04.25 @ 22:49:47 Player: SlyFyer Result: Self-destructed Performance ------------- Evolutions (0) 0 Regions Visited (4) 800 Robots Destroyed (29) 145 Value Destroyed (712) 712 Prototype IDs (24) 480 Alien Tech Used (0) 0 Bonus (300) 300 TOTAL SCORE: 2437 Bonus ------- Aligned with FarCom 300 Cogmind --------- Core Integrity 85/250 Matter 295/300 Energy 280/280 System Corruption 0% Temperature Cool (0) Movement Treading (320) Ox2 Location -9/Mines Parts ------- > --- POWER (1) -------- Heavy Ion Engine > --- PROPULSION (2) --- Light Treads Light Treads > --- UTILITY (2) ------ Huge Storage Unit Targeting Computer > --- WEAPON (2) ------- Light Assault Rifle Shotgun > --- INVENTORY (25) --- Ion Engine Heavy Ion Engine Light Treads Light Treads Light Treads Improved Heat Sink High-capacity Battery (250) Structural Scanner Sensor Array Targeting Computer Utility Shielding Light Armor Plating Tractor Beam Light Assault Rifle XL Autogun Array Light Cannon Datajack Peak State ------------ > --- POWER ------------ Heavy Ion Engine > --- PROPULSION ------- Light Treads Light Treads > --- UTILITY ---------- Huge Storage Unit Targeting Computer > --- WEAPON ----------- EM Pulse Gun Beam Cannon > --- INVENTORY -------- Ion Engine Heavy Ion Engine Light Treads Light Treads Light Treads Improved Heat Sink High-capacity Battery Structural Scanner Sensor Array Targeting Computer Utility Shielding Light Armor Plating Tractor Beam Light Assault Rifle Light Assault Rifle Shotgun Shotgun XL Autogun Array Light Cannon Datajack [Rating: 15] Favorites ----------- Power Heavy Ion Engine Engine Heavy Ion Engine Propulsion Light Treads Treads Light Treads Utility Huge Storage Unit Storage Huge Storage Unit Processor Targeting Computer Weapon Beam Cannon Energy Gun EM Pulse Gun Energy Cannon Beam Cannon Ballistic Gun Light Assault Rifle Build | -11 -10 -10 -10 -9 ------- Run | Yrd Mat Min Exi Min Slots Evolved . | . . . . . Power . | . . . . . Propulsion . | . . . . . Utility . | . . . . . Weapon . | . . . . . Parts Attached 15 | 6 5 1 . 3 Power 2 | 1 1 . . . Engine 2 | 1 1 . . . Core . | . . . . . Reactor . | . . . . . Propulsion 2 | 2 . . . . Treads 2 | 2 . . . . Leg . | . . . . . Wheel . | . . . . . Hover . | . . . . . Flight . | . . . . . Utility 3 | 1 2 . . . Device . | . . . . . Storage 2 | 1 1 . . . Processor 1 | . 1 . . . Hackware . | . . . . . Protection . | . . . . . Artifact . | . . . . . Weapon 8 | 2 2 1 . 3 Energy Gun 2 | . 1 1 . . Energy Cannon 1 | . 1 . . . Ballistic Gun 5 | 2 . . . 3 Ballistic Cannon . | . . . . . Launcher . | . . . . . Special Weapon . | . . . . . Impact Weapon . | . . . . . Slashing Weapon . | . . . . . Piercing Weapon . | . . . . . Special Melee Weapon . | . . . . . Unidentified Prototypes 1 | . 1 . . . Parts Lost 2 | . . 1 . 1 Power . | . . . . . Propulsion . | . . . . . Utility . | . . . . . Weapon 2 | . . 1 . 1 Highest Loss Streak 1 | . . 1 . 1 To Critical Strikes . | . . . . . Average Slot Usage (%) 99 | . 98 99 100 99 Engine 14 | . 14 14 14 14 Treads 28 | . 28 28 28 28 Storage 14 | . 14 14 14 14 Processor 13 | . 12 14 14 14 Energy Gun 12 | . 12 13 14 . Energy Cannon 12 | . 12 14 14 1 Ballistic Gun 3 | . 3 . . 25 Naked Turns . | . . . . . Heaviest Build 94 | 12 92 93 93 94 Greatest Support 40 | 40 40 40 40 40 Greatest Overweight (x) 2 | 1 2 2 2 2 Average Overweight (x) 1 | . 1 2 2 2 Largest Inventory Capacity 25 | 8 25 25 25 25 Average Capacity 24 | 7 24 25 25 25 Most Carried 23 | 7 20 20 23 23 Average Carried 17 | 2 15 19 19 20 Final Capacity 25 | 8 25 25 25 25 Final Carried 23 | 2 20 19 23 20 Class Distribution -------------------- 100% | Mutant Dominant Class ---------------- Mutant | -10/Materials Mutant | -10/Mines Mutant | -10/Exiles Mutant | -9/Mines Resources | -11 -10 -10 -10 -9 ----------- Run | Yrd Mat Min Exi Min Matter Collected 432 | . 304 15 . 113 Remotely . | . . . . . Salvage Created 1099 | . 855 151 . 93 Parts 61 | . 48 9 . 4 Haulers Intercepted 2 | . 2 . . . Recyclers Shooed 1 | . . . . 1 Parts Field Recycled . | . . . . . Retrieved Matter . | . . . . . Parts Self-Destructed . | . . . . . Prevented . | . . . . . Kills | -11 -10 -10 -10 -9 ------- Run | Yrd Mat Min Exi Min Combat Hostiles Destroyed 19 | . 12 5 . 2 Guns 13 | . 7 4 . 2 Cannons 6 | . 5 1 . . Classes Destroyed 7 | . 7 . . . Worker 1 | . 1 . . . Tunneler 1 | . 1 . . . Hauler 2 | . 2 . . . Recycler 3 | . 3 . . . Watcher 3 | . 3 . . . Swarmer 6 | . 3 3 . . Grunt 13 | . 9 2 . 2 Best Kill Streak 5 | . 5 2 . 2 Combat Bots Only 3 | . 3 2 . 2 Max Kills in Single Turn 2 | . 2 1 . 1 Gunslinging . | . . . . . Exploded . | . . . . . Melee . | . . . . . Uniques/NPCs Destroyed . | . . . . . Combat | -11 -10 -10 -10 -9 -------- Run | Yrd Mat Min Exi Min Hostile Shots Fired 122 | . 60 26 . 36 Missed 36 | . 17 6 . 13 Damage Taken 733 | . 334 155 . 244 Core 165 | . 68 31 . 66 Absorbed by Shields . | . . . . . Ignored by Resistances 229 | . 105 48 . 76 Core Remaining (%) 100 | 100 . . . . Volleys Fired 65 | . 38 12 . 15 Largest 2 | . 2 2 . 2 Hottest 100 | . 100 100 . 100 Shots Fired 123 | . 72 24 . 27 Gun 63 | . 36 12 . 15 Cannon 60 | . 36 12 . 12 Launcher . | . . . . . Special . | . . . . . Kinetic 11 | . 4 . . 7 Thermal 92 | . 68 12 . 12 Explosive . | . . . . . Electromagnetic 20 | . . 12 . 8 Robot Hit Streak 18 | . 18 9 . 14 Robot Miss Streak 1 | . 1 1 . 1 Penetration Max . | . . . . . Secondary Targets . | . . . . . Shots Hit Robots 98 | . 57 17 . 24 Core Hits 51 | . 39 7 . 5 Critical Kills . | . . . . . Critical Parts Destroyed . | . . . . . Critical Strikes . | . . . . . Melee Attacks . | . . . . . Impact . | . . . . . Slashing . | . . . . . Piercing . | . . . . . Sneak Attacks . | . . . . . Combat Hostiles . | . . . . . Follow-up Attacks . | . . . . . Damage Inflicted 1776 | . 1135 279 . 362 Guns 601 | . 297 134 . 170 Cannons 819 | . 524 103 . 192 Explosions 356 | . 314 42 . . Melee . | . . . . . Ramming . | . . . . . Kinetic 111 | . 33 . . 78 Thermal 1165 | . 828 145 . 192 Explosive . | . . . . . Electromagnetic 500 | . 274 134 . 92 Impact . | . . . . . Slashing . | . . . . . Piercing . | . . . . . Highest Corruption . | . . . . . Average Corruption . | . . . . . Corruption Purged . | . . . . . Corruption Blocked . | . . . . . Overload Shots . | . . . . . Overflow Damage 15 | . 3 12 . . Projectiles . | . . . . . Explosions 15 | . 3 12 . . Melee . | . . . . . Knockbacks . | . . . . . Impact . | . . . . . Kinetic . | . . . . . Secondary . | . . . . . Self-Inflicted Damage . | . . . . . Shots . | . . . . . Rammed . | . . . . . Targets Rammed . | . . . . . Kicked . | . . . . . Crushed . | . . . . . Highest Temperature 442 | . 270 153 . 442 Average Temperature 110 | . 76 73 . 238 Received Heat Transfer 363 | . 132 60 . 171 Effects 9 | . 3 . . 6 Shutdowns 2 | . . . . 2 Energy Bleed 1 | . . . . 1 Interference 3 | . 3 . . . Matter Decay 1 | . . . . 1 Short Circuit 1 | . . . . 1 Damage (minor) 1 | . . . . 1 Siege Activations . | . . . . . Robots Corrupted . | . . . . . Combat Hostiles . | . . . . . Parts Fried 1 | . 1 . . . Impact Corruptions . | . . . . . Robots Melted . | . . . . . Combat Hostiles . | . . . . . Parts Melted 6 | . 4 . . 2 Heat Transferred 2439 | . 1760 272 . 407 Parts Sabotaged . | . . . . . Parts Stolen . | . . . . . Parts Stripped . | . . . . . Power Chain Reactions 2 | . 1 1 . . Alert | -11 -10 -10 -10 -9 ------- Run | Yrd Mat Min Exi Min Peak Influence 194 | . 194 90 . 55 Initial 9 | . . 9 . . Average 32 | . 30 35 . 42 Maximum Alert Level . | . . . . . Low Security (%) 100 | 100 100 100 . 100 Level 1 . | . . . . . Level 2 . | . . . . . Level 3 . | . . . . . Level 4 . | . . . . . Level 5 . | . . . . . High Security . | . . . . . Max Security . | . . . . . Squads Dispatched 2 | . 2 . . . Investigation 2 | . 2 . . . Extermination . | . . . . . Reinforcement . | . . . . . Assault . | . . . . . Garrison . | . . . . . Intercept . | . . . . . Searches Triggered . | . . . . . Construction Impeded . | . . . . . Haulers Reinforced . | . . . . . Active Scanning Responses . | . . . . . Cargo Convoy Interrupts . | . . . . . Stealth | -11 -10 -10 -10 -9 --------- Run | Yrd Mat Min Exi Min Distress Signals 1 | . 1 . . . Communications Jammed . | . . . . . Distress Signals . | . . . . . Times Spotted 30 | . 19 7 . 4 Peak Tracking Total 4 | . 4 3 . 3 Tactical Retreats 5 | . 2 2 . 1 Traps | -11 -10 -10 -10 -9 ------- Run | Yrd Mat Min Exi Min Traps Triggered 6 | . 6 . . . Indirectly 5 | . 5 . . . Trap Hack Attempts . | . . . . . Triggered . | . . . . . Disarmed . | . . . . . Reprogrammed . | . . . . . Reused . | . . . . . Traps Extracted . | . . . . . Installed . | . . . . . Triggered . | . . . . . Machines | -11 -10 -10 -10 -9 ---------- Run | Yrd Mat Min Exi Min Machines Disabled 8 | . 7 1 . . Max in Single Turn 3 | . 3 1 . . Machines Repaired . | . . . . . Machines Dismantled . | . . . . . Machines Sabotaged . | . . . . . Overloaded Fab Kills . | . . . . . Hacking | -11 -10 -10 -10 -9 --------- Run | Yrd Mat Min Exi Min Machines Accessed 6 | . 4 . 1 1 Terminals 4 | . 4 . . . Fabricators . | . . . . . Repair Stations . | . . . . . Recycling Units . | . . . . . Scanalyzers . | . . . . . Garrison Access . | . . . . . Total Hacks 9 | . 7 . 1 1 Successful 6 | . 4 . 1 1 Failed 3 | . 3 . . . Catastrophic 1 | . 1 . . . Database Lockouts . | . . . . . Manual 9 | . 6 . 3 . Terminals 7 | . 7 . . . Fabricators . | . . . . . Repair Stations . | . . . . . Recycling Units . | . . . . . Scanalyzers . | . . . . . Garrison Access . | . . . . . Terminal Hacks 3 | . 1 . 1 1 Record 1 | . 1 . . . Open Door 1 | . . . . 1 Derelict Proto ID Bank 1 | . . . 1 . Fabricator Hacks . | . . . . . Repair Station Hacks . | . . . . . Recycling Unit Hacks . | . . . . . Scanalyzer . | . . . . . Garrison Access Hacks . | . . . . . Unauthorized Hacks 3 | . 3 . . . Terminals 3 | . 3 . . . Botnet 3 | . 3 . . . Fabricators . | . . . . . Repair Stations . | . . . . . Recycling Units . | . . . . . Scanalyzers . | . . . . . Garrison Access . | . . . . . Data Cores Recovered . | . . . . . Used . | . . . . . Hacking Detections 2 | . 2 . . . Full Trace Events 1 | . 1 . . . Feedback Events . | . . . . . Feedback Blocked . | . . . . . Robot Schematics Acquired . | . . . . . Robots Built . | . . . . . Authchips . | . . . . . Time . | . . . . . Total Robot Build Rating . | . . . . . Part Schematics Acquired . | . . . . . Parts Built . | . . . . . Authchips . | . . . . . Time . | . . . . . Total Part Build Rating . | . . . . . Parts Repaired . | . . . . . Time . | . . . . . Parts Recycled . | . . . . . Recycled Matter . | . . . . . Retrieved Matter . | . . . . . Retrieved Components . | . . . . . Parts Scanalyzed . | . . . . . Part Schematics Acquired . | . . . . . Parts Damaged . | . . . . . Bothacking | -11 -10 -10 -10 -9 ------------ Run | Yrd Mat Min Exi Min Used RIF Installer . | . . . . . Robots Hacked . | . . . . . Non-combat . | . . . . . Combat . | . . . . . Robot Hacks Applied . | . . . . . Relay Couplers Released . | . . . . . Fabnet Peak Effective % . | . . . . . Robots Rewired . | . . . . . Allies Hacked . | . . . . . Hacks Repelled . | . . . . . Allies | -11 -10 -10 -10 -9 -------- Run | Yrd Mat Min Exi Min Total Allies . | . . . . . Largest Group . | . . . . . Highest-Rated Group . | . . . . . Highest-Rated Ally . | . . . . . Total Orders . | . . . . . Ally Attacks . | . . . . . Total Damage . | . . . . . Kills . | . . . . . Allies Corrupted . | . . . . . Allies Melted . | . . . . . Intel | -11 -10 -10 -10 -9 ------- Run | Yrd Mat Min Exi Min Robot Analysis Total . | . . . . . Derelict Logs Recovered 1 | . . 1 . . Drone Launches . | . . . . . Drone Recoveries . | . . . . . Exploration | -11 -10 -10 -10 -9 ------------- Run | Yrd Mat Min Exi Min Turns Passed 6040 | 58 2302 1215 1997 468 Spaces Moved 1806 | 35 677 338 624 132 Core 16 | 16 . . . . Treads 1790 | 19 677 338 624 132 Legs . | . . . . . Wheels . | . . . . . Hover . | . . . . . Flight . | . . . . . Fastest Speed 50 | 50 160 320 320 320 Average Speed 315 | 128 318 320 320 320 Slowest Speed 320 | 160 320 320 320 320 Overloaded Moves . | . . . . . Propulsion Burnouts . | . . . . . Robots Hopped . | . . . . . Cave-ins Triggered . | . . . . . Exploration Rate (%) 51 | 4 85 49 87 31 Regions Visited 4 Branch Regions 3 Pre-discovered Areas 2 | . . 1 . 1 Known Exits Taken . | . . . . . Unknown Exits Taken 4 | 1 1 1 1 . Scrap Searched . | . . . . . Spaces Dug . | . . . . . Terrain Destroyed 1 | . . 1 . . Melee . | . . . . . Projectile . | . . . . . AOE 1 | . . 1 . . Terrain Rammed . | . . . . . Walls Destroyed . | . . . . . Machines Disabled . | . . . . . Actions | -11 -10 -10 -10 -9 --------- Run | Yrd Mat Min Exi Min Total 2032 | 48 757 449 626 152 Wait 108 | . 9 99 . . Move 1802 | 34 676 337 623 132 Hop . | . . . . . Pick Up 34 | 8 24 . 2 . Fast Attach . | . . . . . Attach 13 | 6 3 1 . 3 Detach . | . . . . . Swap 2 | . 2 . . . Drop 8 | . 5 . 1 2 Fire 65 | . 38 12 . 15 Melee . | . . . . . Ram . | . . . . . Kick . | . . . . . Crush . | . . . . . Escape Stasis . | . . . . . Rewire . | . . . . . Trap . | . . . . . Miscellaneous . | . . . . . Route ------- -11/Scrapyard -10/Materials (discovered 4 exits: [*Mat x2] / [*Min] / [*Sub]) -10/Mines (discovered 2 exits: [*Mat] / *Exi) -10/Exiles -9/Mines History --------- Turn | Location | Event 5 | -11/Scrapyard | Discovered new exit (range 15) 59 | -11/Scrapyard | Entered Materials 306 | -10/Materials | Build established: Mutant 505 | -10/Materials | Discovered new exit (range 15) 965 | -10/Materials | Discovered new exit (range 15) 1763 | -10/Materials | Discovered new exit (range 7) 2239 | -10/Materials | Discovered new exit (range 6) 2361 | -10/Materials | Entered Mines 2422 | -10/Mines | Discovered new exit (range 5) 2592 | -10/Mines | Deemed a non-threat by the Exiles lab entrance 2595 | -10/Mines | Discovered new exit (range 5) 3156 | -10/Mines | Assembled infested the area 3576 | -10/Mines | Entered Exiles 3656 | -10/Exiles | Met 8R-AWN 3708 | -10/Exiles | Met EX-HEX 3813 | -10/Exiles | Met EX-BIN 4060 | -10/Exiles | Met EX-DEC 4166 | -10/Exiles | Visited The Gauntlet 4607 | -10/Exiles | Aligned with FarCom system 4610 | -10/Exiles | Given EX-Vault access code 4684 | -10/Exiles | Opened EX-Vault 4709 | -10/Exiles | Found 0b10 Alert Chip 4781 | -10/Exiles | Warned to stay clear of 0b10 Research branches 5274 | -10/Exiles | Found XL Autogun Array 5541 | -10/Exiles | Discovered new exit (range 10) 5573 | -10/Exiles | Left Exiles lab with XL Autogun Array 5573 | -10/Exiles | Entered Mines 5580 | -9/Mines | Core integrity fell below 50% 5671 | -9/Mines | Met a Derelict bent on vengeance 5693 | -9/Mines | Learned location of Storage (-8) 6039 | -9/Mines | Met a Derelict who couldn't figure out how to use a Trap Extractor 6041 | -9/Mines | Self-destructed Last Messages --------------- 05693_ A derelict emerges from the shadows: "Are any of them following you? I'm here trying to lose some heat after our second raid on Storage failed. Whatever you do stay away from that place, they've tightened security following our previous successful raids." World map updated: -8/Storage. 05695_ YM-UT9(g): "We scattered so the Unaware couldn't effectively use their advantage in numbers, and I suggest you do the same." 05695_ YM-UT9(g) slips back into the shadows. 06038_ Connecting with SHOP.Sys... 06038_ Current location identified: Mines >>Open Door Sealed Doors opened. 06039_ KT-XWS(g): "So I found this thing but I have no idea how to use it. And who the hell trapped this place to begin with?!" 06039_ KT-XWS(g): "I give up! Here you try, I'm outta here before something nasty happens..." 06039_ Tosses Imp. Trap Extractor to the ground. 06039_ KT-XWS(g) triggered EMP Trap. 06039_ A bubble of electromagnetic force engulfs the area. 06039_ Machine disabled. Map ----- +----------------------------------------------------+ | | | ?????????????????????????????????????????????????? | | ?????????????????????????????????????????????????? | | ?????####????????????????????????????????????????? | | ????## #################????????????????????????? | | ???## #????????????????????? | | #??# ## #### ########????????????????????????? | | ##?# ### #??# #???????????????????????????????? | | #?# #?# #??# ##??????????????????????????????? | | #?# #?# #??#[ ##?????????????????????????????? | | #### #### #??#% #?????????????????????????????? | | ####### #?##! #?????????????????????????????? | | #????# ###?#"%"##?????????????????????????????? | | ##???# #???# #??????????????????????????????? | | ##### #???# ==#??????????????????????????????? | | ## ######% ##?????????????????????????????? | | [###???????????????????????????? | | ##??????????????????????????? | | #### #] #??????????????????????????? | | # ##??# #[ ##??????????????????????????? | | # ##???# # #########????????????????????? | | ##????# ##" """#????????????????????? | | ##?????# ##!!=![!?????????????????????? | | ##??????#######?# !^ #?????????????????????? | | ##?????????????###[ =#?????????????????????? | | ##??????????????# ## @## #??????????????????? | | ###??????########## gX #??????????????????? | | ##????????# #???????????????? | | ##?????????# u ####???????????????? | | #??????????# ####### #??????????????????? | | #??????????# #?????###########??????????????????? | | ???????????# #?????????????????????????l????????? | | ???????????# #??????????????????????????????????? | | ???????????# #??????????????????????????????????? | | #########??# #??????????????????????????????????? | | #??# #??????????????????????????????????? | | ####### #??# #??Y???????????????????????????????? | | ??????# #??# #??????????????????????????????????? | | ??????# #??# #??????????????????????????????????? | | ??????# #??# #??????????????????????????????????? | | ??????# #??# #??????????????????????????????????? | | ??????# #### #??Y???????????????????????????????? | | ??????# #??????????????????????????????????? | | ??????###### #######????????????????????????????? | | ???????????# #????????????????????????????? | | ???????????# ##### #????????????????????????????? | | ???????????# #??????????????????????????????????? | | ?????????? #??????????????????????????????????? | | ????????? ??????????????????????????????????? | | ????????# ??????????????????????????????????? | +----------------------------------------------------+ Best States ------------- Heat Dissipation 25 Energy Generation 14 Energy Capacity 280 Matter Stores 300 Matter Capacity 300 Sight Range 16 Terrain Scan Density 10 Resistance: KI 20 Resistance: TH 20 Resistance: EX 20 Resistance: EM 20 Resistance: I 20 Resistance: S 20 Resistance: P 20 Evasion (%) 40 Targeting Accuracy 5 Recoil Reduction 2 Offensive Hacking 10 Item Schematics ----------------- None Robot Schematics ------------------ None Fabricated ------------ Nothing Alien Tech Used ----------------- None Achievements -------------- None Challenges ------------ None Game ------ Seed GuidanceSegregatorTerrabomb Manual? 0 Play Time 00:17:37 Cumulative 65.7 hours Start 2024.04.25 @ 22:30:26 End 2024.04.25 @ 22:49:47 Sessions 1 Manual Loads 0 Difficulty Adventurer Special Mode None Game No. 29 Rogue 0 Adventurer 29 Explorer 0 Win Type - Total 2 Types 1/1/0/0/0/0/0/0/0 Lore% 45 Gallery% 58 Achievement% 52 Wizard Run 0 Options --------- Layout 0 ASCII 0 Keyboard 0 Movement Mouse Keybinds 0 Fullscreen 1 Font 18/SmallcapsGlow Map View 76x50 Zoom Use 0% Tactical HUD 1 Map Filters NONE Filters NONE Steam 1 RUN: 057cea27-5264-477b-9261-98d4cafb0669